fUSD/lending_fUSD_20240327
["ID","MTS","AMOUNT","RATE_DAILY","PERIOD"]
[320781065,1711554655134,-500.0,0.00054246,120]
[320781066,1711554655145,-5938.03,0.00054246,120]
[320781067,1711554655154,-824.2,0.00054246,120]
[320781068,1711554655477,-500.0,0.00054246,120]
[320781069,1711554655500,-947.77,0.00054246,120]
[320781070,1711554655510,-500.0,0.00054246,120]
[320781071,1711554655522,-1785.95,0.00054246,120]
[320781072,1711554655532,-287.16,0.00054246,120]
[320781073,1711554655542,-1305.7,0.00054246,120]
[320781074,1711554655551,-1757.74,0.00054246,120]
[320781075,1711554655561,-5812.37,0.00054246,120]
[320781076,1711554655571,-4911.11,0.00054246,120]
[320781077,1711554655580,-500.0,0.00054246,120]
[320781078,1711554655590,-2743.72,0.00054246,120]
[320781079,1711554655600,-565.65,0.00054246,120]
[320781080,1711554655610,-635.68503715,0.00054246,120]
[320781081,1711554655619,-1125.33,0.00054246,120]
[320781082,1711554655629,-500.0,0.00054246,120]
[320781083,1711554655638,-13848.98,0.00054246,120]
[320781084,1711554655648,-500.0,0.00054246,120]
[320781085,1711554655658,-500.0,0.00054246,2]
[320781086,1711554655668,-12374.83,0.00054246,21]
[320781087,1711554655678,-12788.92,0.00054246,120]
[320781088,1711554655687,-1972.1,0.00054246,120]
[320781089,1711554655696,-641.76,0.00054246,120]
[320781090,1711554655706,-743.95,0.00054246,120]
[320781091,1711554655715,-1060.16,0.00054246,120]
[320781092,1711554655725,-500.0,0.00054246,120]
[320781093,1711554655734,-974.77,0.00054246,120]
[320781094,1711554655744,-3607.42,0.00054246,120]
[320781095,1711554655754,-500.0,0.00054246,2]
[320781096,1711554655763,-500.0,0.00054246,120]
[320781097,1711554655774,-1025.4,0.00054246,120]
[320781098,1711554655783,-500.0,0.00054246,120]
[320781099,1711554655793,-500.0,0.00054246,120]
[320781100,1711554655803,-500.0,0.00054246,120]
[320781101,1711554655814,-500.0,0.00054246,120]
[320781102,1711554655824,-538.35,0.00054246,120]
[320781103,1711554655834,-3679.76,0.00054246,120]
[320781104,1711554655844,-1678.73,0.00054246,120]
[320781105,1711554655855,-810.76,0.00054246,120]
[320781106,1711554655865,-2942.43,0.00054246,120]
[320781107,1711554655875,-500.0,0.00054246,120]
[320781108,1711554655885,-2571.2,0.00054246,120]
[320781109,1711554655895,-2088.19,0.00054246,120]
[320781110,1711554655905,-500.0,0.00054246,120]
[320781111,1711554655914,-500.0,0.00054246,120]
[320781112,1711554655924,-16566.1,0.00054246,120]
[320781113,1711554655934,-500.0,0.00054246,120]
[320781114,1711554655944,-1541.24,0.00054246,120]
[320781115,1711554655954,-500.0,0.00054246,120]
[320781116,1711554655964,-500.0,0.00054246,120]
[320781117,1711554655973,-7480.12,0.00054246,120]
[320781118,1711554655984,-500.0,0.00054246,120]
[320781119,1711554655994,-500.0,0.00054246,120]
[320781120,1711554656003,-500.0,0.00054246,120]
[320781121,1711554656013,-720.01,0.00054246,120]
[320781122,1711554656025,-2007.02,0.00054246,120]
[320781123,1711554656035,-900.45,0.00054246,120]
[320781124,1711554656044,-24722.74,0.00054246,120]
[320781125,1711554656054,-500.0,0.00054246,120]
[320781126,1711554656064,-2546.35,0.00054246,120]
[320781127,1711554656074,-914.26,0.00054246,120]
[320781128,1711554656085,-500.0,0.00054246,120]
[320781129,1711554656094,-780.88,0.00054246,120]
[320781130,1711554656104,-1940.78,0.00054246,120]
[320781131,1711554656114,-500.0,0.00054246,120]
[320781132,1711554656123,-500.0,0.00054246,120]
[320781133,1711554656133,-509.72,0.00054246,120]
[320781134,1711554656143,-500.0,0.00054246,120]
[320781135,1711554656153,-1520.84,0.00054246,120]
[320781136,1711554656164,-1068.21,0.00054246,120]
[320781137,1711554656174,-500.0,0.00054246,120]
[320781138,1711554656184,-2138.52,0.00054246,120]
[320781139,1711554656194,-2104.08,0.00054246,120]
[320781140,1711554656203,-500.0,0.00054246,120]
[320781141,1711554656213,-2224.08,0.00054246,120]
[320781142,1711554656224,-4635.58,0.00054246,120]
[320781143,1711554656233,-500.0,0.00054246,120]
[320781144,1711554656243,-1963.06,0.00054246,120]
[320781145,1711554656252,-500.0,0.00054246,85]
[320781146,1711554656262,-1023.13,0.00054246,120]
[320781147,1711554656272,-19360.64,0.00054246,120]
[320781148,1711554656282,-157.69826866,0.00054248,60]
[320781149,1711554656293,-637.0,0.0005427,15]
[320781150,1711554656303,-152.365744,0.0005427,60]
[320781151,1711554656313,-637.0,0.0005428,15]
[320781152,1711554656322,-637.0,0.0005429,15]
[320781153,1711554656332,-413.51988765,0.00054306,60]
[320781154,1711554656341,-151.15404747,0.00054353,60]
[320781155,1711554656350,-413.51988765,0.00054355,60]
[320781156,1711554656361,-158.34810879,0.00054368,60]
[320781157,1711554656371,-155.37270175,0.00054384,60]
[320781158,1711554656381,-150.0,0.000544,2]
[320781159,1711554656391,-5150.0,0.000544,14]
[320781160,1711554656401,-190.60760831,0.00054415,2]
[320781161,1711554656411,-4415.9647844,0.0005442,120]
[320781162,1711554656421,-731.95,0.00054466,120]
[320781163,1711554656431,-157.36998597,0.0005447,60]
[320781164,1711554656441,-151.15404747,0.00054476,60]
[320781165,1711554656450,-151.15404747,0.00054477,60]
[320781166,1711554656460,-151.22191435,0.00054482,60]
[320781167,1711554656469,-815.0,0.0005449,15]
[320781168,1711554656479,-400.0,0.00054493,30]
[320781169,1711554656488,-150.8,0.000545,15]
[320781170,1711554656499,-815.0,0.000545,15]
[320781171,1711554656509,-150.7,0.0005451,15]
[320781172,1711554656521,-150.5,0.0005451,15]
[320781173,1711554656530,-815.0,0.0005451,15]
[320781174,1711554656539,-6532.48076418,0.0005451,32]
[320781175,1711554656549,-608.4,0.00054515,120]
[320781176,1711554656559,-1000.0,0.00054519,90]
[320781177,1711554656568,-2440.6965858,0.0005452,4]
[320781178,1711554656577,-16945.23828515,0.0005452,2]
[320781179,1711554656587,-155.0,0.0005452,2]
[320781180,1711554656597,-500.0,0.0005452,120]
[320781181,1711554656606,-500.0,0.0005452,120]
[320781182,1711554656615,-500.0,0.0005452,120]
[320781183,1711554656624,-500.0,0.0005452,120]
[320781184,1711554656633,-500.0,0.0005452,120]
[320781185,1711554656642,-500.0,0.0005452,120]
[320781186,1711554656651,-245.72,0.0005452,120]
[320781187,1711554656660,-500.0,0.0005452,120]
[320781188,1711554656670,-554.78,0.0005452,120]
[320781189,1711554656678,-500.0,0.0005452,120]
[320781190,1711554656688,-500.0,0.0005452,120]
[320781191,1711554656697,-500.0,0.0005452,120]
[320781192,1711554656706,-530.95,0.0005452,120]
[320781193,1711554656715,-500.0,0.0005452,120]
[320781194,1711554656725,-500.0,0.0005452,120]
[320781195,1711554656734,-500.0,0.0005452,120]
[320781196,1711554656743,-500.0,0.0005452,120]
[320781197,1711554656752,-500.0,0.0005452,120]
[320781198,1711554656762,-500.0,0.0005452,120]
[320781199,1711554656772,-450.35,0.0005452,120]
[320781200,1711554656782,-500.0,0.0005452,120]
[320781201,1711554656791,-500.0,0.0005452,120]
[320781202,1711554656801,-523.9,0.0005452,120]
[320781203,1711554656810,-500.0,0.0005452,120]
[320781204,1711554656822,-500.0,0.0005452,120]
[320781205,1711554656831,-552.62,0.0005452,120]
[320781206,1711554656840,-500.0,0.0005452,120]
[320781207,1711554656850,-500.0,0.0005452,120]
[320781208,1711554656859,-500.0,0.0005452,120]
[320781209,1711554656870,-530.43,0.0005452,120]
[320781210,1711554656879,-500.0,0.0005452,120]
[320781211,1711554656888,-500.0,0.0005452,120]
[320781212,1711554656899,-500.0,0.0005452,120]
[320781213,1711554656908,-500.0,0.0005452,120]
[320781214,1711554656917,-500.0,0.0005452,120]
[320781215,1711554656927,-519.26,0.0005452,120]
[320781216,1711554656936,-500.0,0.0005452,120]
[320781217,1711554656945,-500.0,0.0005452,120]
[320781218,1711554656955,-500.0,0.0005452,120]
[320781219,1711554656964,-500.0,0.0005452,120]
[320781220,1711554656973,-500.0,0.0005452,120]
[320781221,1711554656982,-500.0,0.0005452,120]
[320781222,1711554656991,-500.0,0.0005452,120]
[320781223,1711554657001,-1322.22,0.0005452,120]
[320781224,1711554657010,-617.63,0.0005452,120]
[320781225,1711554657020,-1237.78,0.0005452,120]
[320781226,1711554657030,-500.0,0.0005452,120]
[320781227,1711554657039,-500.0,0.0005452,120]
[320781228,1711554657049,-500.0,0.0005452,120]
[320781229,1711554657058,-500.0,0.0005452,120]
[320781230,1711554657067,-500.0,0.0005452,120]
[320781231,1711554657077,-500.0,0.0005452,120]
[320781232,1711554657087,-500.0,0.0005452,120]
[320781233,1711554657096,-500.0,0.0005452,120]
[320781234,1711554657105,-500.0,0.0005452,120]
[320781235,1711554657114,-500.0,0.0005452,120]
[320781236,1711554657124,-500.0,0.0005452,120]
[320781237,1711554657133,-500.0,0.0005452,120]
[320781238,1711554657143,-500.0,0.0005452,120]
[320781239,1711554657152,-691.88,0.0005452,120]
[320781240,1711554657161,-500.0,0.0005452,120]
[320781241,1711554657171,-500.0,0.0005452,120]
[320781242,1711554657180,-749.48,0.0005452,120]
[320781243,1711554657189,-517.66409499,0.0005452,120]
[320781244,1711554657198,-500.0,0.0005452,120]
[320781245,1711554657207,-500.0,0.0005452,120]
[320781246,1711554657216,-500.0,0.0005452,120]
[320781247,1711554657226,-502.73,0.0005452,120]
[320781248,1711554657236,-1584.4,0.0005452,120]
[320781249,1711554657245,-500.0,0.0005452,120]
[320781250,1711554657254,-500.0,0.0005452,120]
[320781251,1711554657264,-500.0,0.0005452,120]
[320781252,1711554657276,-500.0,0.0005452,120]
[320781253,1711554657287,-1296.53,0.0005452,120]
[320781254,1711554657297,-500.0,0.0005452,120]
[320781255,1711554657307,-550.3,0.0005452,120]
[320781256,1711554657318,-766.4,0.0005452,120]
[320781257,1711554657327,-715.8,0.0005452,120]
[320781258,1711554657336,-880.83,0.0005452,120]
[320781259,1711554657345,-694.26,0.0005452,120]
[320781260,1711554657354,-500.0,0.0005452,120]
[320781261,1711554657366,-1647.08,0.0005452,120]
[320781262,1711554657376,-301.59,0.0005452,120]
[320781263,1711554657386,-500.0,0.0005452,120]
[320781264,1711554657397,-569.40070158,0.0005452,120]
[320781265,1711554657406,-500.0,0.0005452,120]
[320781266,1711554657415,-500.0,0.0005452,120]
[320781267,1711554657424,-500.0,0.0005452,120]
[320781268,1711554657434,-500.0,0.0005452,60]
[320781269,1711554657443,-500.0,0.0005452,120]
[320781270,1711554657456,-540.66,0.0005452,120]
[320781271,1711554657465,-500.0,0.0005452,120]
[320781272,1711554657475,-1503.87,0.0005452,120]
[320781273,1711554657485,-500.0,0.0005452,120]
[320781274,1711554657494,-1323.57,0.0005452,120]
[320781275,1711554657504,-500.0,0.0005452,120]
[320781276,1711554657515,-500.0,0.0005452,120]
[320781277,1711554657527,-500.0,0.0005452,120]
[320781278,1711554657536,-477.17,0.0005452,120]
[320781279,1711554657545,-541.75,0.0005452,120]
[320781280,1711554657554,-500.0,0.0005452,120]
[320781281,1711554657563,-849.1,0.0005452,120]
[320781282,1711554657574,-500.0,0.0005452,120]
[320781283,1711554657584,-500.0,0.0005452,120]
[320781284,1711554657595,-500.0,0.0005452,120]
[320781285,1711554657605,-500.0,0.0005452,120]
[320781286,1711554657615,-1808.03,0.0005452,120]
[320781287,1711554657626,-1307.64,0.0005452,120]
[320781288,1711554657636,-555.64,0.0005452,120]
[320781289,1711554657646,-567.43,0.0005452,120]
[320781290,1711554657656,-500.0,0.0005452,120]
[320781291,1711554657666,-500.0,0.0005452,120]
[320781292,1711554657676,-535.11,0.0005452,120]
[320781293,1711554657686,-500.0,0.0005452,15]
[320781294,1711554657695,-500.0,0.0005452,120]
[320781295,1711554657705,-500.0,0.0005452,120]
[320781296,1711554657714,-558.88,0.0005452,120]
[320781297,1711554657723,-500.0,0.0005452,120]
[320781298,1711554657733,-500.0,0.0005452,120]
[320781299,1711554657742,-500.0,0.0005452,120]
[320781300,1711554657752,-500.0,0.0005452,120]
[320781301,1711554657761,-829.96,0.0005452,120]
[320781302,1711554657773,-500.0,0.0005452,120]
[320781303,1711554657784,-500.0,0.0005452,120]
[320781304,1711554657798,-500.0,0.0005452,120]
[320781305,1711554657811,-500.0,0.0005452,120]
[320781306,1711554657822,-1395.79,0.0005452,120]
[320781307,1711554657831,-2732.09,0.0005452,120]
[320781308,1711554657840,-500.0,0.0005452,120]
[320781309,1711554657850,-500.0,0.0005452,120]
[320781310,1711554657860,-169.86,0.0005452,120]
[320781311,1711554657870,-839.62,0.0005452,120]
[320781312,1711554657879,-500.0,0.0005452,120]
[320781313,1711554657888,-211.52,0.0005452,120]
[320781314,1711554657899,-500.0,0.0005452,120]
[320781315,1711554657909,-500.0,0.0005452,120]
[320781316,1711554657918,-922.79,0.0005452,120]
[320781317,1711554657927,-500.0,0.0005452,120]
[320781318,1711554657937,-1172.91,0.0005452,120]
[320781319,1711554657946,-500.0,0.0005452,120]
[320781320,1711554657956,-500.0,0.0005452,120]
[320781321,1711554657966,-514.11,0.0005452,120]
[320781322,1711554657976,-500.0,0.0005452,120]
[320781323,1711554657987,-643.9,0.0005452,120]
[320781324,1711554658004,-947.87,0.0005452,120]
[320781325,1711554658018,-1305.11,0.0005452,120]
[320781326,1711554658033,-500.0,0.0005452,120]
[320781327,1711554658045,-500.0,0.0005452,120]
[320781328,1711554658056,-533.96,0.0005452,120]
[320781329,1711554658068,-500.0,0.0005452,120]
[320781330,1711554658082,-500.0,0.0005452,120]
[320781331,1711554658095,-877.75,0.0005452,120]
[320781332,1711554658107,-613.5,0.0005452,120]
[320781333,1711554658121,-500.0,0.0005452,120]
[320781334,1711554658134,-500.0,0.0005452,120]
[320781335,1711554658147,-500.0,0.0005452,120]
[320781336,1711554658159,-706.46,0.0005452,120]
[320781337,1711554658170,-500.0,0.0005452,120]
[320781338,1711554658183,-500.0,0.0005452,120]
[320781339,1711554658195,-476.85,0.0005452,120]
[320781340,1711554658209,-500.0,0.0005452,120]
[320781341,1711554658220,-500.0,0.0005452,120]
[320781342,1711554658232,-611.94,0.0005452,120]
[320781343,1711554658245,-865.93,0.0005452,120]
[320781344,1711554658257,-500.0,0.0005452,120]
[320781345,1711554658270,-555.83,0.0005452,120]
[320781346,1711554658283,-500.0,0.0005452,120]
[320781347,1711554658299,-655.96,0.0005452,120]
[320781348,1711554658312,-851.64,0.0005452,120]
[320781349,1711554658328,-1233.8,0.0005452,120]
[320781350,1711554658343,-500.0,0.0005452,120]
[320781351,1711554658357,-500.0,0.0005452,120]
[320781352,1711554658370,-525.6,0.0005452,120]
[320781353,1711554658383,-1357.15,0.0005452,120]
[320781354,1711554658395,-500.0,0.0005452,120]
[320781355,1711554658409,-654.59,0.0005452,120]
[320781356,1711554658421,-500.0,0.0005452,120]
[320781357,1711554658436,-500.0,0.0005452,120]
[320781358,1711554658450,-500.0,0.0005452,120]
[320781359,1711554658463,-583.0,0.0005452,120]
[320781360,1711554658478,-548.48456373,0.0005452,120]
[320781361,1711554658489,-675.26,0.0005452,120]
[320781362,1711554658503,-500.0,0.0005452,120]
[320781363,1711554658513,-543.77,0.0005452,120]
[320781364,1711554658525,-500.0,0.0005452,120]
[320781365,1711554658538,-500.0,0.0005452,120]
[320781366,1711554658550,-815.0,0.0005452,120]
[320781367,1711554658562,-500.0,0.0005452,120]
[320781368,1711554658577,-500.0,0.0005452,120]
[320781369,1711554658591,-702.2,0.0005452,120]
[320781370,1711554658603,-384.44,0.0005452,120]
[320781371,1711554658616,-500.0,0.0005452,120]
[320781372,1711554658628,-500.0,0.0005452,120]
[320781373,1711554658642,-631.65,0.0005452,120]
[320781374,1711554658653,-500.0,0.0005452,120]
[320781375,1711554658665,-550.38,0.0005452,120]
[320781376,1711554658679,-932.19,0.0005452,120]
[320781377,1711554658692,-500.0,0.0005452,120]
[320781378,1711554658706,-609.48,0.0005452,120]
[320781379,1711554658719,-612.37,0.0005452,120]
[320781380,1711554658732,-580.84459458,0.0005452,120]
[320781381,1711554658746,-529.59,0.0005452,120]
[320781382,1711554658760,-500.0,0.0005452,120]
[320781383,1711554658774,-500.0,0.0005452,120]
[320781384,1711554658787,-500.0,0.0005452,120]
[320781385,1711554658799,-500.0,0.0005452,120]
[320781386,1711554658814,-693.99,0.0005452,30]
[320781387,1711554658827,-500.0,0.0005452,120]
[320781388,1711554658839,-500.0,0.0005452,120]
[320781389,1711554658852,-1310.29,0.0005452,120]
[320781390,1711554658873,-500.0,0.0005452,120]
[320781391,1711554658885,-1241.97,0.0005452,120]
[320781392,1711554658898,-500.0,0.0005452,120]
[320781393,1711554658913,-1054.34,0.0005452,120]
[320781394,1711554658925,-500.0,0.0005452,120]
[320781395,1711554658937,-549.63,0.0005452,120]
[320781396,1711554658949,-713.22,0.0005452,120]
[320781397,1711554658961,-541.38,0.0005452,120]
[320781398,1711554658973,-1264.08,0.0005452,120]
[320781399,1711554658985,-500.0,0.0005452,120]
[320781400,1711554658996,-500.0,0.0005452,120]
[320781401,1711554659008,-500.0,0.0005452,120]
[320781402,1711554659020,-565.63,0.0005452,120]
[320781403,1711554659034,-797.86,0.0005452,120]
[320781404,1711554659045,-500.0,0.0005452,120]
[320781405,1711554659057,-254.67,0.0005452,120]
[320781406,1711554659068,-739.13,0.0005452,120]
[320781407,1711554659079,-500.0,0.0005452,120]
[320781408,1711554659090,-602.32,0.0005452,120]
[320781409,1711554659101,-500.0,0.0005452,7]
[320781410,1711554659112,-652.17,0.0005452,120]
[320781411,1711554659124,-939.11,0.0005452,120]
[320781412,1711554659135,-500.0,0.0005452,120]
[320781413,1711554659146,-500.0,0.0005452,120]
[320781414,1711554659157,-500.0,0.0005452,120]
[320781415,1711554659168,-500.0,0.0005452,120]
[320781416,1711554659180,-500.0,0.0005452,120]
[320781417,1711554659191,-500.0,0.0005452,120]
[320781418,1711554659202,-500.0,0.0005452,120]
[320781419,1711554659214,-500.0,0.0005452,120]
[320781420,1711554659225,-500.0,0.0005452,120]
[320781421,1711554659236,-500.0,0.0005452,120]
[320781422,1711554659248,-500.0,0.0005452,120]
[320781423,1711554659261,-682.39,0.0005452,120]
[320781424,1711554659272,-1231.57,0.0005452,120]
[320781425,1711554659288,-601.73,0.0005452,120]
[320781426,1711554659299,-500.0,0.0005452,120]
[320781427,1711554659310,-543.72,0.0005452,120]
[320781428,1711554659321,-500.0,0.0005452,120]
[320781429,1711554659332,-696.5,0.0005452,120]
[320781430,1711554659344,-856.06,0.0005452,120]
[320781431,1711554659355,-500.0,0.0005452,120]
[320781432,1711554659367,-500.0,0.0005452,120]
[320781433,1711554659379,-500.0,0.0005452,120]
[320781434,1711554659392,-500.0,0.0005452,120]
[320781435,1711554659404,-500.0,0.0005452,120]
[320781436,1711554659416,-500.0,0.0005452,120]
[320781437,1711554659427,-500.0,0.0005452,120]
[320781438,1711554659439,-500.0,0.0005452,120]
[320781439,1711554659452,-500.0,0.0005452,120]
[320781440,1711554659463,-500.0,0.0005452,120]
[320781441,1711554659475,-500.0,0.0005452,120]
[320781442,1711554659486,-619.64,0.0005452,120]
[320781443,1711554659498,-500.0,0.0005452,120]
[320781444,1711554659509,-514.56,0.0005452,120]
[320781445,1711554659521,-500.0,0.0005452,120]
[320781446,1711554659536,-500.0,0.0005452,120]
[320781447,1711554659547,-1303.59,0.0005452,120]
[320781448,1711554659559,-500.0,0.0005452,120]
[320781449,1711554659569,-500.0,0.0005452,120]
[320781450,1711554659580,-500.0,0.0005452,120]
[320781451,1711554659592,-500.0,0.0005452,120]
[320781452,1711554659602,-543.1,0.0005452,120]
[320781453,1711554659613,-501.93,0.0005452,120]
[320781454,1711554659624,-500.0,0.0005452,120]
[320781455,1711554659634,-500.0,0.0005452,120]
[320781456,1711554659646,-1436.74,0.0005452,120]
[320781457,1711554659656,-500.0,0.0005452,120]
[320781458,1711554659667,-500.0,0.0005452,120]
[320781459,1711554659678,-500.0,0.0005452,120]
[320781460,1711554659689,-500.0,0.0005452,120]
[320781461,1711554659699,-500.0,0.0005452,120]
[320781462,1711554659711,-500.0,0.0005452,120]
[320781463,1711554659722,-1020.14,0.0005452,120]
[320781464,1711554659733,-713.6,0.0005452,120]
[320781465,1711554659744,-403.11,0.0005452,120]
[320781466,1711554659755,-500.0,0.0005452,120]
[320781467,1711554659766,-524.4,0.0005452,120]
[320781468,1711554659778,-325.41,0.0005452,120]
[320781469,1711554659789,-500.0,0.0005452,120]
[320781470,1711554659800,-500.0,0.0005452,120]
[320781471,1711554659811,-500.0,0.0005452,120]
[320781472,1711554659824,-798.21,0.0005452,120]
[320781473,1711554659835,-5949.26,0.0005452,120]
[320781474,1711554659846,-500.0,0.0005452,120]
[320781475,1711554659857,-500.0,0.0005452,120]
[320781476,1711554659868,-500.0,0.0005452,120]
[320781477,1711554659879,-970.77,0.0005452,120]
[320781478,1711554659890,-500.0,0.0005452,120]
[320781479,1711554659901,-582.83,0.0005452,120]
[320781480,1711554659913,-500.0,0.0005452,120]
[320781481,1711554659924,-500.0,0.0005452,120]
[320781482,1711554659935,-607.54,0.0005452,120]
[320781483,1711554659946,-7009.44,0.0005452,120]
[320781484,1711554659958,-2060.85,0.0005452,120]
[320781485,1711554659969,-500.0,0.0005452,120]
[320781486,1711554659980,-500.0,0.0005452,120]
[320781487,1711554659992,-2470.68,0.0005452,120]
[320781488,1711554660002,-687.91,0.0005452,120]
[320781489,1711554660013,-500.0,0.0005452,120]
[320781490,1711554660024,-634.56,0.0005452,120]
[320781491,1711554660036,-767.78,0.0005452,120]
[320781492,1711554660047,-500.0,0.0005452,120]
[320781493,1711554660059,-219.48,0.0005452,120]
[320781494,1711554660070,-1940.07,0.0005452,120]
[320781495,1711554660083,-500.0,0.0005452,120]
[320781496,1711554660094,-500.0,0.0005452,120]
[320781497,1711554660106,-500.0,0.0005452,120]
[320781498,1711554660117,-500.0,0.0005452,120]
[320781499,1711554660128,-1309.78,0.0005452,120]
[320781500,1711554660142,-2317.84,0.0005452,120]
[320781501,1711554660152,-1547.28,0.0005452,120]
[320781502,1711554660163,-703.46,0.0005452,120]
[320781503,1711554660174,-500.0,0.0005452,120]
[320781504,1711554660185,-737.68,0.0005452,120]
[320781505,1711554660196,-578.32,0.0005452,120]
[320781506,1711554660207,-27.93551591,0.0005452,120]
[320781507,1711554660803,-232.55765196,0.00019,2]
[320781508,1711554660815,-497.14667322,0.00036999,4]
[320781509,1711554660827,-849.01,0.00054246,120]
[320781510,1711554660837,-26.28567482,0.0005452,120]
[320781511,1711554660861,-445.77880927,0.0005452,120]
[320781512,1711554660872,-500.0,0.0005452,120]
[320781513,1711554660882,-500.0,0.0005452,120]
[320781514,1711554660891,-723.45,0.0005452,120]
[320781515,1711554660900,-309.15154426,0.0005452,120]
[320781518,1711554844257,69018.46255313,0.00018,2]
[320781519,1711554865092,-1020.26297848,0.00029998,10]
[320781520,1711554882243,2499.84972554,0.0003,10]
[320781522,1711554907552,1156.38464044,0.0003,60]
[320781523,1711554911463,592.53426233,0.0003,17]
[320781526,1711554921669,977.11666891,0.0003,60]
[320781527,1711554925791,717.59438341,0.0003,17]
[320781532,1711555282035,197.19424904,0.0003,30]
[320781533,1711555292675,14601.2964716,0.0003,30]
[320781534,1711555340602,9715.53345238,0.0003,30]
[320781535,1711555429680,152.05604362,0.00039619,30]
[320781536,1711555452413,-400.0,0.00030222,120]
[320781537,1711555452440,-1240.14659888,0.00031109,15]
[320781538,1711555452467,-448.96,0.00032548,15]
[320781539,1711555549831,331.0,0.00039596,30]
[320781541,1711555587165,910.06,0.00017753,2]
[320781542,1711555635101,-1237.33265613,0.00018445,2]
[320781543,1711555635123,-680.30955827,0.00018445,2]
[320781544,1711555635144,-806.5669211,0.00018446,2]
[320781545,1711555635166,-10.93254307,0.00018446,2]
[320781546,1711555639966,700.0,0.000299,10]
[320781547,1711555645263,-294.11055924,0.00018445,2]
[320781548,1711555645283,-1229.04344661,0.00018446,2]
[320781549,1711555645306,-265.90282322,0.00018447,2]
[320781550,1711555645327,-424.72957603,0.00018447,2]
[320781551,1711555645347,-205.23806172,0.00018447,2]
[320781552,1711555645366,-241.80493718,0.00018448,2]
[320781562,1711555734288,-3148.33989645,0.00018441,2]
[320781563,1711555734316,-361.10221362,0.00018442,2]
[320781564,1711555734345,-19324.99035316,0.00018442,2]
[320781565,1711555734374,-19324.99035316,0.00018442,2]
[320781566,1711555734402,-4299.75231569,0.00018443,2]
[320781567,1711555734431,-521.04289427,0.00018449,2]
[320781568,1711555734459,-576.0,0.0001845,2]
[320781569,1711555734486,-156.58282532,0.00018464,2]
[320781570,1711555734513,-23887.15870131,0.0001856,2]
[320781571,1711555734543,-4124.97422883,0.00018569,2]
[320781572,1711555734571,-837.457,0.0001858,2]
[320781573,1711555734600,-172.06284793,0.00018682,2]
[320781574,1711555734631,-232.55765196,0.00019,2]
[320781575,1711555740226,19324.99035316,0.00018442,2]
[320781576,1711555750116,-150.0,0.00019691,2]
[320781577,1711555750142,-2438.0476,0.00019692,2]
[320781578,1711555758115,-3054.88944436,0.00019691,2]
[320781579,1711555779873,3005.669,0.00018344,2]
[320781580,1711555784982,-1084.45216457,0.00019691,2]
[320781581,1711555785015,-21461.9524,0.00019692,2]
[320781582,1711555785045,-1826.12,0.0001976,2]
[320781583,1711555785075,-250.0,0.00019761,2]